fUSD/lending_fUSD_20250806
["ID","MTS","AMOUNT","RATE_DAILY","PERIOD"]
[377574980,1754445113897,-1806.76,0.00036438,14]
[377574981,1754445113908,-400.0,0.00036438,14]
[377574982,1754445113918,-1611.49,0.00036438,14]
[377574983,1754445113928,-1787.24,0.00036438,14]
[377574984,1754445113938,-619.2,0.00036438,14]
[377574985,1754445113947,-2102.4,0.00036438,14]
[377574986,1754445113957,-688.5,0.00036438,14]
[377574987,1754445113966,-569.78,0.00036438,14]
[377574988,1754445113976,-400.0,0.00036438,14]
[377574989,1754445113985,-400.0,0.00036438,14]
[377574990,1754445113995,-400.0,0.00036438,14]
[377574991,1754445114006,-400.0,0.00036438,14]
[377574992,1754445114015,-400.0,0.00036438,14]
[377574993,1754445114024,-400.0,0.00036438,14]
[377574994,1754445114034,-400.0,0.00036438,14]
[377574995,1754445114043,-710.89,0.00036438,14]
[377574996,1754445114053,-481.93,0.00036438,14]
[377574997,1754445114062,-400.0,0.00036438,14]
[377574998,1754445114071,-949.67,0.00036438,14]
[377574999,1754445114082,-568.21,0.00036438,14]
[377575000,1754445114100,-1788.12,0.00036438,14]
[377575001,1754445114110,-498.72,0.00036438,14]
[377575002,1754445114120,-2013.03,0.00036438,14]
[377575003,1754445114130,-400.0,0.00036438,14]
[377575004,1754445114140,-1824.43,0.00036438,14]
[377575005,1754445114149,-767.84,0.00036438,14]
[377575006,1754445114159,-1988.32,0.00036438,14]
[377575007,1754445114168,-400.0,0.00036438,14]
[377575008,1754445114178,-480.69,0.00036438,14]
[377575009,1754445114187,-400.0,0.00036438,14]
[377575010,1754445114197,-2354.23,0.00036438,14]
[377575011,1754445114207,-400.0,0.00036438,14]
[377575012,1754445114218,-400.0,0.00036438,14]
[377575013,1754445114227,-416.99,0.00036438,14]
[377575014,1754445114237,-400.0,0.00036438,14]
[377575015,1754445114246,-758.44,0.00036438,14]
[377575016,1754445114256,-400.0,0.00036438,14]
[377575017,1754445114266,-718.49,0.00036438,14]
[377575018,1754445114276,-1328.89,0.00036438,14]
[377575019,1754445114286,-400.0,0.00036438,14]
[377575020,1754445114296,-400.0,0.00036438,14]
[377575021,1754445114305,-439.78,0.00036438,14]
[377575022,1754445114315,-400.0,0.00036438,14]
[377575023,1754445114324,-400.0,0.00036438,14]
[377575024,1754445114335,-400.0,0.00036438,14]
[377575025,1754445114345,-400.0,0.00036438,14]
[377575026,1754445114354,-2988.22,0.00036438,14]
[377575027,1754445114363,-2203.89,0.00036438,14]
[377575028,1754445114372,-1149.15,0.00036438,14]
[377575029,1754445114381,-400.0,0.00036438,14]
[377575030,1754445114391,-400.0,0.00036438,14]
[377575031,1754445114400,-400.0,0.00036438,14]
[377575032,1754445114416,-1480.78,0.00036438,14]
[377575033,1754445114426,-400.0,0.00036438,14]
[377575034,1754445114436,-400.0,0.00036438,14]
[377575035,1754445114446,-2499.37,0.00036438,14]
[377575036,1754445114456,-547.74,0.00036438,14]
[377575037,1754445114467,-400.0,0.00036438,120]
[377575038,1754445114477,-657.92,0.00036438,14]
[377575039,1754445114486,-571.97,0.00036438,14]
[377575040,1754445114495,-400.0,0.00036438,14]
[377575041,1754445114504,-1707.26,0.00036438,14]
[377575042,1754445114513,-1895.93,0.00036438,14]
[377575043,1754445114522,-1700.42,0.00036438,14]
[377575044,1754445114531,-1189.15,0.00036438,14]
[377575045,1754445114540,-602.43,0.00036438,14]
[377575046,1754445114549,-400.0,0.00036438,14]
[377575047,1754445114558,-1693.91,0.00036438,14]
[377575048,1754445114568,-400.0,0.00036438,14]
[377575049,1754445114578,-400.0,0.00036438,14]
[377575050,1754445114587,-1368.61,0.00036438,14]
[377575051,1754445114596,-400.0,0.00036438,14]
[377575052,1754445114606,-400.0,0.00036438,14]
[377575053,1754445114616,-416.82,0.00036438,14]
[377575054,1754445114625,-400.0,0.00036438,14]
[377575055,1754445114635,-400.0,0.00036438,14]
[377575056,1754445114645,-400.0,0.00036438,14]
[377575057,1754445114655,-400.0,0.00036438,14]
[377575058,1754445114664,-717.67,0.00036438,14]
[377575059,1754445114674,-1626.03,0.00036438,14]
[377575060,1754445114683,-2682.58,0.00036438,14]
[377575061,1754445114694,-636.39,0.00036438,14]
[377575062,1754445114703,-769.03,0.00036438,14]
[377575063,1754445114941,-1340.21,0.00036438,14]
[377575064,1754445114967,-2230.29,0.00036438,14]
[377575065,1754445114977,-1641.75,0.00036438,14]
[377575066,1754445114987,-1549.47,0.00036438,14]
[377575067,1754445114996,-151.0,0.00036438,7]
[377575068,1754445115006,-400.0,0.00036438,14]
[377575069,1754445115016,-400.0,0.00036438,14]
[377575070,1754445115026,-2884.4,0.00036438,14]
[377575071,1754445115035,-2077.85,0.00036438,14]
[377575072,1754445115045,-641.86,0.00036438,14]
[377575073,1754445115055,-3366.84,0.00036438,14]
[377575074,1754445115066,-1990.46,0.00036438,14]
[377575075,1754445115076,-400.0,0.00036438,14]
[377575076,1754445115086,-518.43,0.00036438,14]
[377575077,1754445115095,-2093.1,0.00036438,14]
[377575078,1754445115105,-400.0,0.00036438,14]
[377575079,1754445115114,-400.0,0.00036438,14]
[377575080,1754445115123,-439.51,0.00036438,14]
[377575081,1754445115133,-463.8,0.00036438,14]
[377575082,1754445115142,-1513.27,0.00036438,14]
[377575083,1754445115152,-601.08,0.00036438,14]
[377575084,1754445115162,-400.0,0.00036438,14]
[377575085,1754445115172,-1083.21,0.00036438,14]
[377575086,1754445115182,-423.39,0.00036438,14]
[377575087,1754445115192,-400.0,0.00036438,14]
[377575088,1754445115202,-400.0,0.00036438,14]
[377575089,1754445115212,-2286.88,0.00036438,14]
[377575090,1754445115222,-905.59,0.00036438,14]
[377575091,1754445115232,-434.02,0.00036438,14]
[377575092,1754445115243,-2123.08,0.00036438,14]
[377575093,1754445115254,-400.0,0.00036438,14]
[377575094,1754445115266,-400.0,0.00036438,14]
[377575095,1754445115276,-400.0,0.00036438,14]
[377575096,1754445115286,-2629.25,0.00036438,14]
[377575097,1754445115296,-400.0,0.00036438,14]
[377575098,1754445115306,-1104.88,0.00036438,14]
[377575099,1754445115316,-400.0,0.00036438,14]
[377575100,1754445115326,-479.99,0.00036438,14]
[377575101,1754445115336,-847.31,0.00036438,14]
[377575102,1754445115345,-2002.8,0.00036438,14]
[377575103,1754445115355,-2067.35,0.00036438,14]
[377575104,1754445115364,-71290.36,0.00036438,14]
[377575105,1754445115373,-400.0,0.00036438,14]
[377575106,1754445115383,-3017.99,0.00036438,14]
[377575107,1754445115392,-1245.68,0.00036438,14]
[377575108,1754445115402,-590.54,0.00036438,14]
[377575109,1754445115411,-400.0,0.00036438,14]
[377575110,1754445115421,-604.63,0.00036438,14]
[377575111,1754445115430,-447.51,0.00036438,14]
[377575112,1754445115440,-933.36,0.00036438,14]
[377575113,1754445115449,-1652.1,0.00036438,14]
[377575114,1754445115459,-673.51,0.00036438,14]
[377575115,1754445115468,-400.0,0.00036438,14]
[377575116,1754445115477,-654.96,0.00036438,14]
[377575117,1754445115487,-1875.41,0.00036438,14]
[377575118,1754445115496,-2830.73,0.00036438,14]
[377575119,1754445115505,-400.0,0.00036438,14]
[377575120,1754445115514,-546.92,0.00036438,14]
[377575121,1754445115524,-319.90019787,0.00036438,14]
[377575122,1754445115537,-848.25,0.00036438,14]
[377575123,1754445115551,-237.495615,0.00036438,7]
[377575124,1754445115560,-1724.16,0.00036438,14]
[377575125,1754445115570,-1918.37,0.00036438,14]
[377575126,1754445115580,-400.0,0.00036438,14]
[377575127,1754445115590,-2789.82,0.00036438,14]
[377575128,1754445115600,-1784.3,0.00036438,14]
[377575129,1754445115609,-1545.14,0.00036438,14]
[377575130,1754445115619,-1081.98,0.00036438,14]
[377575131,1754445115628,-2023.55,0.00036438,14]
[377575132,1754445115637,-1648.33,0.00036438,14]
[377575133,1754445115647,-500.0,0.00036438,10]
[377575134,1754445115656,-1821.93,0.00036438,14]
[377575135,1754445115665,-3617.37,0.00036438,14]
[377575136,1754445115674,-400.0,0.00036438,14]
[377575137,1754445115683,-2306.61,0.00036438,14]
[377575138,1754445115693,-1041.11,0.00036438,14]
[377575139,1754445115702,-528.06267369,0.00036438,14]
[377575140,1754445115711,-493.49,0.00036438,14]
[377575141,1754445115721,-2855.56,0.00036438,14]
[377575142,1754445115731,-1811.94,0.00036438,14]
[377575143,1754445115740,-400.0,0.00036438,14]
[377575144,1754445115749,-400.0,0.00036438,14]
[377575145,1754445115759,-400.0,0.00036438,14]
[377575146,1754445115768,-400.0,0.00036438,14]
[377575147,1754445115778,-436.71,0.00036438,14]
[377575148,1754445115788,-400.0,0.00036438,14]
[377575149,1754445115799,-1187.63,0.00036438,14]
[377575150,1754445115810,-3830.15,0.00036438,14]
[377575151,1754445115820,-400.0,0.00036438,14]
[377575152,1754445115831,-794.08,0.00036438,14]
[377575153,1754445115844,-416.71,0.00036438,14]
[377575154,1754445115854,-2613.19,0.00036438,14]
[377575155,1754445115863,-2255.8,0.00036438,14]
[377575156,1754445115874,-400.0,0.00036438,14]
[377575157,1754445115884,-762.8,0.00036438,14]
[377575158,1754445115894,-1160.89,0.00036438,14]
[377575159,1754445115903,-2221.46,0.00036438,14]
[377575160,1754445115915,-400.0,0.00036438,14]
[377575161,1754445115925,-513.53,0.00036438,14]
[377575162,1754445115935,-400.0,0.00036438,14]
[377575163,1754445115944,-400.0,0.00036438,14]
[377575164,1754445115954,-781.28,0.00036438,14]
[377575165,1754445115964,-400.0,0.00036438,14]
[377575166,1754445115973,-400.0,0.00036438,14]
[377575167,1754445115983,-936.65,0.00036438,14]
[377575168,1754445115992,-612.34,0.00036438,14]
[377575169,1754445116002,-400.0,0.00036438,14]
[377575170,1754445116012,-2655.03,0.00036438,14]
[377575171,1754445116022,-400.0,0.00036438,14]
[377575172,1754445116033,-831.4,0.00036438,14]
[377575173,1754445116042,-506.01,0.00036438,14]
[377575174,1754445116053,-1748.09,0.00036438,14]
[377575175,1754445116063,-400.0,0.00036438,14]
[377575176,1754445116072,-400.0,0.00036438,14]
[377575177,1754445116082,-2008.93,0.00036438,14]
[377575178,1754445116092,-953.45,0.00036438,14]
[377575179,1754445116102,-1644.91,0.00036438,14]
[377575180,1754445116112,-648.56,0.00036438,14]
[377575181,1754445116122,-400.0,0.00036438,14]
[377575182,1754445116131,-400.0,0.00036438,14]
[377575183,1754445116141,-2625.94,0.00036438,14]
[377575184,1754445116150,-400.0,0.00036438,14]
[377575185,1754445116160,-973.51,0.00036438,14]
[377575186,1754445116170,-1508.84,0.00036438,14]
[377575187,1754445116179,-1000.0,0.00036438,30]
[377575188,1754445116189,-1416.11,0.00036438,14]
[377575189,1754445116199,-2742.82,0.00036438,14]
[377575190,1754445116209,-796.41,0.00036438,14]
[377575191,1754445116218,-400.0,0.00036438,2]
[377575192,1754445116228,-400.0,0.00036438,14]
[377575193,1754445116238,-435.03,0.00036438,14]
[377575194,1754445116248,-912.38,0.00036438,14]
[377575195,1754445116257,-400.0,0.00036438,14]
[377575196,1754445116267,-406.24,0.00036438,14]
[377575197,1754445116277,-400.0,0.00036438,14]
[377575198,1754445116287,-1688.61,0.00036438,14]
[377575199,1754445116297,-1930.39,0.00036438,14]
[377575200,1754445116307,-1276.5,0.00036438,14]
[377575201,1754445116318,-3362.96,0.00036438,14]
[377575202,1754445116330,-400.0,0.00036438,14]
[377575203,1754445116339,-1533.65,0.00036438,14]
[377575204,1754445116349,-1233.26,0.00036438,14]
[377575205,1754445116358,-974.88,0.00036438,14]
[377575206,1754445116368,-400.0,0.00036438,14]
[377575207,1754445116378,-400.0,0.00036438,14]
[377575208,1754445116387,-400.0,0.00036438,14]
[377575209,1754445116397,-828.93,0.00036438,14]
[377575210,1754445116406,-611.39,0.00036438,14]
[377575211,1754445116416,-2359.36,0.00036438,14]
[377575212,1754445116426,-1381.51,0.00036438,14]
[377575213,1754445116436,-400.0,0.00036438,14]
[377575214,1754445116445,-400.0,0.00036438,14]
[377575215,1754445116455,-2353.9,0.00036438,14]
[377575216,1754445116465,-2428.33,0.00036438,14]
[377575217,1754445116474,-720.53,0.00036438,14]
[377575218,1754445116484,-508.54,0.00036438,14]
[377575219,1754445116494,-400.0,0.00036438,14]
[377575220,1754445116503,-400.0,0.00036438,14]
[377575221,1754445116512,-727.52,0.00036438,14]
[377575222,1754445116522,-914.87,0.00036438,14]
[377575223,1754445116531,-1570.84,0.00036438,14]
[377575224,1754445116541,-400.0,0.00036438,14]
[377575225,1754445116550,-400.0,0.00036438,14]
[377575226,1754445116560,-1242.76,0.00036438,14]
[377575227,1754445116569,-400.0,0.00036438,14]
[377575228,1754445116579,-1815.15,0.00036438,14]
[377575229,1754445116589,-2159.6,0.00036438,14]
[377575230,1754445116598,-1691.5,0.00036438,14]
[377575231,1754445116608,-2604.52,0.00036438,14]
[377575232,1754445116619,-400.0,0.00036438,14]
[377575233,1754445116628,-833.52,0.00036438,14]
[377575234,1754445116639,-2108.28,0.00036438,14]
[377575235,1754445116648,-3299.28,0.00036438,14]
[377575236,1754445116658,-400.0,0.00036438,14]
[377575237,1754445116667,-400.0,0.00036438,14]
[377575238,1754445116677,-2255.41,0.00036438,14]
[377575239,1754445116686,-400.0,0.00036438,14]
[377575240,1754445116695,-400.0,0.00036438,14]
[377575241,1754445116705,-400.0,0.00036438,14]
[377575242,1754445116714,-518.49,0.00036438,14]
[377575243,1754445116723,-2313.76,0.00036438,14]
[377575244,1754445116733,-1373.52,0.00036438,14]
[377575245,1754445116742,-400.0,0.00036438,14]
[377575246,1754445116752,-400.0,0.00036438,14]
[377575247,1754445116762,-2179.89,0.00036438,14]
[377575248,1754445116771,-730.83,0.00036438,14]
[377575249,1754445116780,-2179.98,0.00036438,14]
[377575250,1754445116790,-1963.34,0.00036438,14]
[377575251,1754445116800,-2168.33,0.00036438,14]
[377575252,1754445116809,-458.01,0.00036438,14]
[377575253,1754445116819,-815.36,0.00036438,14]
[377575254,1754445116829,-682.09,0.00036438,14]
[377575255,1754445116841,-1061.433774,0.00036438,7]
[377575256,1754445116850,-1061.433774,0.00036438,7]
[377575257,1754445116860,-2626.5,0.00036438,14]
[377575258,1754445116870,-2208.17,0.00036438,14]
[377575259,1754445116881,-2476.71,0.00036438,14]
[377575260,1754445116891,-673.31,0.00036438,14]
[377575261,1754445116900,-4617.44,0.00036438,14]
[377575262,1754445116910,-1866.72,0.00036438,14]
[377575263,1754445116920,-1201.96,0.00036438,14]
[377575264,1754445116929,-1061.433774,0.00036438,7]
[377575265,1754445116938,-1061.433774,0.00036438,7]
[377575266,1754445116948,-519.39,0.00036438,14]
[377575267,1754445116958,-713.79,0.00036438,14]
[377575268,1754445116967,-2364.09,0.00036438,14]
[377575269,1754445116976,-2713.46,0.00036438,14]
[377575270,1754445116985,-2555.58,0.00036438,14]
[377575271,1754445116995,-1056.52,0.00036438,14]
[377575272,1754445117005,-1047.25,0.00036438,14]
[377575273,1754445117014,-400.0,0.00036438,14]
[377575274,1754445117024,-400.0,0.00036438,14]
[377575275,1754445117033,-2030.48,0.00036438,14]
[377575276,1754445117043,-735.52,0.00036438,14]
[377575277,1754445117053,-825.16,0.00036438,14]
[377575278,1754445117062,-467.82,0.00036438,14]
[377575279,1754445117072,-400.0,0.00036438,14]
[377575280,1754445117082,-2043.6,0.00036438,14]
[377575281,1754445117091,-400.0,0.00036438,14]
[377575282,1754445117101,-2050.4,0.00036438,14]
[377575283,1754445117110,-1284.98,0.00036438,14]
[377575284,1754445117120,-2599.72,0.00036438,14]
[377575285,1754445117129,-1695.14,0.00036438,14]
[377575286,1754445117139,-479.36,0.00036438,14]
[377575287,1754445117148,-409.76,0.00036438,14]
[377575288,1754445117157,-400.0,0.00036438,14]
[377575289,1754445117167,-400.0,0.00036438,14]
[377575290,1754445117177,-2048.45,0.00036438,14]
[377575291,1754445117187,-513.41,0.00036438,14]
[377575292,1754445117196,-400.0,0.00036438,14]
[377575293,1754445117205,-1802.86,0.00036438,14]
[377575294,1754445117215,-957.54,0.00036438,14]
[377575295,1754445117224,-322.87487262,0.00036438,14]
[377575296,1754445117234,-4237.75,0.00036438,14]
[377575297,1754445117243,-826.95,0.00036438,14]
[377575298,1754445117253,-940.23,0.00036438,14]
[377575299,1754445117262,-1319.64,0.00036438,14]
[377575300,1754445117271,-2915.89,0.00036438,14]
[377575301,1754445117280,-400.0,0.00036438,14]
[377575302,1754445117290,-400.0,0.00036438,14]
[377575303,1754445117299,-421.21,0.00036438,14]
[377575304,1754445117308,-2698.14,0.00036438,14]
[377575305,1754445117317,-400.0,0.00036438,14]
[377575306,1754445117326,-1879.02,0.00036438,14]
[377575307,1754445117335,-662.0,0.00036438,14]
[377575308,1754445117344,-2526.45,0.00036438,14]
[377575309,1754445117353,-1110.88,0.00036438,14]
[377575310,1754445117362,-400.0,0.00036438,14]
[377575311,1754445117371,-2184.0,0.00036438,14]
[377575312,1754445117380,-1954.64,0.00036438,14]
[377575313,1754445117389,-400.0,0.00036438,14]
[377575314,1754445117497,-400.0,0.00036438,14]
[377575315,1754445117508,-1125.53,0.00036438,14]
[377575316,1754445117518,-406.59,0.00036438,14]
[377575317,1754445117527,-2248.31,0.00036438,14]
[377575318,1754445117537,-3057.89,0.00036438,14]
[377575319,1754445117547,-2348.84,0.00036438,14]
[377575320,1754445117556,-1469.08,0.00036438,14]
[377575321,1754445117565,-1546.2,0.00036438,14]
[377575322,1754445117574,-2560.9,0.00036438,14]
[377575323,1754445117585,-1492.94,0.00036438,14]
[377575324,1754445117594,-1510.11,0.00036438,14]
[377575325,1754445117603,-1300.6,0.00036438,14]
[377575326,1754445117613,-1109.48,0.00036438,14]
[377575327,1754445117622,-2409.79,0.00036438,14]
[377575328,1754445117631,-400.0,0.00036438,14]
[377575329,1754445117640,-1940.76,0.00036438,14]
[377575330,1754445117651,-2094.27,0.00036438,14]
[377575331,1754445117660,-2091.69,0.00036438,14]
[377575332,1754445117670,-400.0,0.00036438,14]
[377575333,1754445117680,-400.0,0.00036438,14]
[377575334,1754445117690,-3089.75,0.00036438,14]
[377575335,1754445117699,-400.0,0.00036438,14]
[377575336,1754445117708,-1357.58,0.00036438,14]
[377575337,1754445117718,-400.0,0.00036438,14]
[377575338,1754445117727,-1090.52,0.00036438,14]
[377575339,1754445117737,-400.0,0.00036438,14]
[377575340,1754445117746,-400.0,0.00036438,14]
[377575341,1754445117755,-1599.41,0.00036438,14]
[377575342,1754445117765,-3437.75,0.00036438,14]
[377575343,1754445117775,-400.0,0.00036438,14]
[377575344,1754445117784,-2092.3,0.00036438,14]
[377575345,1754445117794,-400.0,0.00036438,14]
[377575346,1754445117803,-883.72,0.00036438,14]
[377575347,1754445117813,-400.0,0.00036438,14]
[377575348,1754445117822,-1271.32,0.00036438,14]
[377575349,1754445117835,-400.0,0.00036438,14]
[377575350,1754445117844,-400.0,0.00036438,14]
[377575351,1754445117854,-2013.37,0.00036438,14]
[377575352,1754445117864,-400.0,0.00036438,14]
[377575353,1754445117874,-1943.96,0.00036438,14]
[377575354,1754445117884,-886.4,0.00036438,14]
[377575355,1754445117893,-400.0,0.00036438,14]
[377575356,1754445117902,-1396.32,0.00036438,14]
[377575357,1754445117914,-400.0,0.00036438,14]
[377575358,1754445117923,-1720.47,0.00036438,14]
[377575359,1754445117933,-744.99,0.00036438,14]
[377575360,1754445117942,-2750.06,0.00036438,14]
[377575361,1754445117951,-2175.59,0.00036438,14]
[377575362,1754445117962,-677.09,0.00036438,14]
[377575363,1754445117971,-578.92,0.00036438,14]
[377575364,1754445117982,-2660.98,0.00036438,14]
[377575365,1754445117999,-1763.59,0.00036438,14]
[377575366,1754445118008,-400.0,0.00036438,14]
[377575367,1754445118017,-3583.37,0.00036438,14]
[377575368,1754445118027,-2511.86,0.00036438,14]
[377575369,1754445118036,-1216.69,0.00036438,14]
[377575370,1754445118045,-1902.77,0.00036438,14]
[377575371,1754445118054,-2032.88,0.00036438,14]
[377575372,1754445118064,-2045.46,0.00036438,14]
[377575373,1754445118073,-3485.41,0.00036438,14]
[377575374,1754445118083,-1870.7,0.00036438,14]
[377575375,1754445118092,-1451.6,0.00036438,14]
[377575376,1754445118101,-833.02,0.00036438,14]
[377575377,1754445118110,-400.0,0.00036438,14]
[377575378,1754445118119,-3248.58,0.00036438,14]
[377575379,1754445118128,-400.0,0.00036438,14]
[377575380,1754445118137,-761.42,0.00036438,14]
[377575381,1754445118147,-828.22,0.00036438,14]
[377575382,1754445118156,-406.26,0.00036438,14]
[377575383,1754445118166,-400.0,0.00036438,14]
[377575384,1754445118175,-1567.98,0.00036438,14]
[377575385,1754445118184,-400.0,0.00036438,14]
[377575386,1754445118194,-3514.4,0.00036438,14]
[377575387,1754445118203,-2013.37,0.00036438,14]
[377575388,1754445118212,-400.0,0.00036438,14]
[377575389,1754445118221,-5085.92,0.00036438,14]
[377575390,1754445118230,-1466.68,0.00036438,14]
[377575391,1754445118240,-3720.93,0.00036438,14]
[377575392,1754445118251,-1366.96,0.00036438,14]
[377575393,1754445118260,-841.14,0.00036438,14]
[377575394,1754445118270,-605.06,0.00036438,14]
[377575395,1754445118279,-1961.2,0.00036438,14]
[377575396,1754445118288,-400.0,0.00036438,14]
[377575397,1754445118298,-400.0,0.00036438,14]
[377575398,1754445118307,-529.46,0.00036438,14]
[377575399,1754445118315,-400.0,0.00036438,14]
[377575400,1754445118325,-3015.77,0.00036438,14]
[377575401,1754445118336,-1179.27,0.00036438,14]
[377575402,1754445118345,-400.0,0.00036438,14]
[377575403,1754445118355,-1544.56,0.00036438,14]
[377575404,1754445118364,-400.0,0.00036438,14]
[377575405,1754445118374,-400.0,0.00036438,14]
[377575406,1754445118385,-1718.51,0.00036438,14]
[377575407,1754445118394,-826.11,0.00036438,14]
[377575408,1754445118404,-400.0,0.00036438,14]
[377575409,1754445118413,-400.0,0.00036438,14]
[377575410,1754445118423,-846.42,0.00036438,14]
[377575411,1754445118432,-2062.82,0.00036438,14]
[377575412,1754445118441,-3610.57,0.00036438,14]
[377575413,1754445118450,-1315.19,0.00036438,14]
[377575414,1754445118459,-400.0,0.00036438,14]
[377575415,1754445118468,-652.09,0.00036438,14]
[377575416,1754445118477,-1987.91,0.00036438,14]
[377575417,1754445118486,-460.8,0.00036438,14]
[377575418,1754445118496,-2090.07,0.00036438,14]
[377575419,1754445118505,-1497.84,0.00036438,14]
[377575420,1754445118515,-1610.42,0.00036438,14]
[377575421,1754445118524,-400.0,0.00036438,14]
[377575422,1754445118533,-400.0,0.00036438,14]
[377575423,1754445118542,-3291.23,0.00036438,14]
[377575424,1754445118551,-1022.7,0.00036438,14]
[377575425,1754445118560,-743.81,0.00036438,14]
[377575426,1754445118570,-1512.79,0.00036438,14]
[377575427,1754445118579,-5160.74,0.00036438,14]
[377575428,1754445118588,-400.0,0.00036438,14]
[377575429,1754445118598,-400.0,0.00036438,14]
[377575430,1754445118607,-957.92,0.00036438,14]
[377575431,1754445118616,-2258.55,0.00036438,14]
[377575432,1754445118625,-2314.9,0.00036438,14]
[377575433,1754445118634,-1400.63,0.00036438,14]
[377575434,1754445118644,-2945.22,0.00036438,14]
[377575435,1754445118653,-1550.41,0.00036438,14]
[377575436,1754445118663,-400.0,0.00036438,14]
[377575437,1754445118672,-2945.97,0.00036438,14]
[377575438,1754445118681,-1637.73,0.00036438,14]
[377575439,1754445118690,-1198.3,0.00036438,14]
[377575440,1754445118699,-468.56,0.00036438,14]
[377575441,1754445118708,-400.0,0.00036438,14]
[377575442,1754445118718,-400.0,0.00036438,14]
[377575443,1754445118728,-1243.94,0.00036438,14]
[377575444,1754445118737,-1310.3,0.00036438,14]
[377575445,1754445118747,-1907.53,0.00036438,14]
[377575446,1754445118756,-949.45,0.00036438,14]
[377575447,1754445118766,-400.0,0.00036438,14]
[377575448,1754445118775,-400.0,0.00036438,14]
[377575449,1754445118783,-2156.58,0.00036438,14]
[377575450,1754445118793,-2032.65,0.00036438,14]
[377575451,1754445118802,-400.0,0.00036438,14]
[377575452,1754445118811,-1928.06,0.00036438,14]
[377575453,1754445118820,-849.23,0.00036438,14]
[377575454,1754445118830,-1599.02,0.00036438,14]
[377575455,1754445118842,-6570.38,0.00036438,14]
[377575456,1754445118851,-478.88,0.00036438,14]
[377575457,1754445118861,-2209.33,0.00036438,14]
[377575458,1754445118871,-2192.19,0.00036438,14]
[377575459,1754445118881,-400.0,0.00036438,14]
[377575460,1754445118890,-922.18,0.00036438,14]
[377575461,1754445118901,-725.39,0.00036438,14]
[377575462,1754445118910,-3526.33,0.00036438,14]
[377575463,1754445118920,-1089.73,0.00036438,14]
[377575464,1754445118930,-400.0,0.00036438,14]
[377575465,1754445118939,-2527.58,0.00036438,14]
[377575466,1754445118948,-1149.59,0.00036438,14]
[377575467,1754445118957,-504.61,0.00036438,14]
[377575468,1754445118967,-757.53,0.00036438,14]
[377575469,1754445118976,-1790.5,0.00036438,14]
[377575470,1754445118985,-1094.22,0.00036438,14]
[377575471,1754445118995,-1766.95,0.00036438,14]
[377575472,1754445119004,-786.41,0.00036438,14]
[377575473,1754445119014,-2054.01,0.00036438,14]
[377575474,1754445119023,-1663.17,0.00036438,14]
[377575475,1754445119033,-580.15,0.00036438,14]
[377575476,1754445119042,-954.12,0.00036438,14]
[377575477,1754445119052,-2095.59,0.00036438,14]
[377575478,1754445119061,-702.26,0.00036438,14]
[377575479,1754445119070,-1000.88,0.00036438,14]